Cogmind - Beta 9.3 @@@ ROGUE MODE // 2019.12.21 @ 20:58:31 // Winter2019/RPGLIKE Player: DrMcTaalik Result: Destroyed by G-47 Trooper with Particle Gun Performance ------------- Evolutions (0) 0 Regions Visited (2) 400 Robots Destroyed (9) 45 Value Destroyed (337) 337 Prototype IDs (0) 0 Alien Tech Used (0) 0 Bonus (0) 0 TOTAL SCORE: 782 Bonus ------- None Cogmind --------- Core Integrity 0/600 Matter 429/450 Energy 59/100 System Corruption 2% Temperature Cool (9) Movement Walking (120) Location -10/Mines Parts ------- > --- POWER (1) -------- (None) > --- PROPULSION (1) --- Aluminum Leg > --- UTILITY (1) ------ Large Matter Pod > --- WEAPON (1) ------- EM Pulse Gun > --- INVENTORY (0) ---- (None) Peak State ------------ > --- POWER ------------ Ion Engine > --- PROPULSION ------- Wheel > --- UTILITY ---------- Seismic Analyzer > --- WEAPON ----------- Particle Gun > --- INVENTORY -------- (None) [Rating: 5] Favorites ----------- Power Ion Engine Engine Ion Engine Propulsion Aluminum Leg Leg Aluminum Leg Wheel Wheel Flight Unit Flight Unit Utility Large Matter Pod Storage Large Matter Pod Processor Seismic Analyzer Weapon EM Pulse Gun Energy Gun EM Pulse Gun Ballistic Gun Light Assault Rifle Build | -11 -10 -10 ------- Run | Scr Mat Min Slots Evolved . | . . . Power . | . . . Propulsion . | . . . Utility . | . . . Weapon . | . . . Parts Attached 11 | 3 8 . Power 2 | 1 1 . Engine 2 | 1 1 . Core . | . . . Reactor . | . . . Propulsion 4 | 1 3 . Treads . | . . . Leg 1 | . 1 . Wheel 2 | 1 1 . Hover . | . . . Flight 1 | . 1 . Utility 2 | . 2 . Device . | . . . Storage 1 | . 1 . Processor 1 | . 1 . Hackware . | . . . Protection . | . . . Artifact . | . . . Weapon 3 | 1 2 . Energy Gun 2 | . 2 . Energy Cannon . | . . . Ballistic Gun 1 | 1 . . Ballistic Cannon . | . . . Launcher . | . . . Special Weapon . | . . . Impact Weapon . | . . . Slashing Weapon . | . . . Piercing Weapon . | . . . Special Melee Weapon . | . . . Unidentified Prototypes . | . . . Parts Lost . | . . . Power . | . . . Propulsion . | . . . Utility . | . . . Weapon . | . . . Highest Loss Streak . | . . . Average Slot Usage (%) 65 | . 64 75 Engine 6 | . 7 . Leg 10 | . 8 25 Wheel 7 | . 8 . Storage 15 | . 13 25 Processor 6 | . 7 . Energy Gun 17 | . 15 25 Ballistic Gun 2 | . 3 . Naked Turns 29 | . 29 . Heaviest Build 8 | 6 8 5 Greatest Support 10 | 10 10 10 Greatest Overweight (x) 2 | . 2 . Average Overweight (x) . | . . . Largest Inventory Capacity . | . . . Average Capacity . | . . . Most Carried . | . . . Average Carried . | . . . Final Capacity . | . . . Final Carried . | . . . Class Distribution -------------------- 100% | Mutant Dominant Class ---------------- Mutant | -10/Materials Mutant | -10/Mines Resources | -11 -10 -10 ----------- Run | Scr Mat Min Matter Collected 434 | 192 242 . Remotely . | . . . Salvage Created 459 | . 459 . Parts 25 | . 25 . Haulers Intercepted . | . . . Recyclers Shooed . | . . . Parts Field Recycled . | . . . Retrieved Matter . | . . . Parts Self-Destructed . | . . . Prevented . | . . . Kills | -11 -10 -10 ------- Run | Scr Mat Min Combat Hostiles Destroyed 8 | . 8 . Guns 6 | . 6 . AOE 2 | . 2 . Classes Destroyed 2 | . 2 . Operator 1 | . 1 . Grunt 8 | . 8 . Best Kill Streak 4 | . 4 . Combat Bots Only 4 | . 4 . Max Kills in Single Turn 2 | . 2 . Gunslinging . | . . . Exploded 2 | . 2 . Melee . | . . . Uniques/NPCs Destroyed . | . . . Combat | -11 -10 -10 -------- Run | Scr Mat Min Damage Taken 704 | . 656 48 Core 604 | . 563 41 Absorbed by Shields . | . . . Redirected to Core 335 | . 309 26 Core Remaining (%) 100 | 100 . . Volleys Fired 47 | . 41 6 Largest 1 | . 1 1 Hottest 65 | . 65 40 Shots Fired 47 | . 41 6 Gun 47 | . 41 6 Cannon . | . . . Launcher . | . . . Special . | . . . Kinetic . | . . . Thermal 21 | . 21 . Explosive . | . . . Electromagnetic 26 | . 20 6 Robot Hit Streak 5 | . 5 3 Robot Miss Streak 7 | . 7 1 Penetration Max . | . . . Secondary Targets . | . . . Shots Hit Robots 21 | . 17 4 Core Hits 15 | . 15 . Critical Hits . | . . . Critical Kills . | . . . Critical Parts Destroyed . | . . . Melee Attacks . | . . . Impact . | . . . Slashing . | . . . Piercing . | . . . Sneak Attacks . | . . . Combat Hostiles . | . . . Follow-up Attacks . | . . . Damage Inflicted 583 | . 530 53 Guns 483 | . 430 53 Cannons . | . . . Explosions 95 | . 95 . Melee . | . . . Ramming 5 | . 5 . Kinetic . | . . . Thermal 334 | . 334 . Explosive . | . . . Electromagnetic 244 | . 191 53 Impact . | . . . Slashing . | . . . Piercing . | . . . Highest Corruption 2 | . 2 2 Average Corruption 2 | . 2 2 Corruption Purged . | . . . Effects 2 | . 1 1 Message Errors 1 | . 1 . Data Loss (minor) 1 | . . 1 Overload Shots . | . . . Overflow Damage . | . . . Projectiles . | . . . Explosions . | . . . Melee . | . . . Knockbacks . | . . . Impact . | . . . Kinetic . | . . . Secondary . | . . . Self-Inflicted Damage 38 | . 38 . Shots 1 | . 1 . Rammed 1 | . 1 . Targets Rammed 1 | . 1 . Kicked . | . . . Crushed . | . . . Highest Temperature 573 | . 573 4 Average Temperature 249 | . 252 4 Received Heat Transfer 375 | . 348 27 Effects 22 | . 22 . Shutdowns 3 | . 3 . Interference 1 | . 1 . Matter Decay 2 | . 2 . Damage (minor) 2 | . 2 . Damage (major) 14 | . 14 . Siege Activations . | . . . Robots Corrupted . | . . . Combat Hostiles . | . . . Parts Fried . | . . . Impact Corruptions . | . . . Robots Melted . | . . . Combat Hostiles . | . . . Parts Melted 1 | . 1 . Heat Transferred 692 | . 692 . Parts Sabotaged . | . . . Parts Stolen . | . . . Parts Stripped . | . . . Power Chain Reactions 1 | . 1 . Missiles Intercepted . | . . . Alert | -11 -10 -10 ------- Run | Scr Mat Min Peak Influence 220 | . 220 85 Average Influence 102 | . 126 85 Maximum Alert Level 1 | . 1 . Low Security (%) 74 | 100 64 100 Level 1 25 | . 35 . Level 2 . | . . . Level 3 . | . . . Level 4 . | . . . Level 5 . | . . . High Security . | . . . Max Security . | . . . Squads Dispatched 2 | . 2 . Investigation 1 | . 1 . Extermination . | . . . Reinforcement 1 | . 1 . Assault . | . . . Garrison . | . . . Intercept . | . . . Construction Impeded . | . . . Haulers Reinforced . | . . . Stealth | -11 -10 -10 --------- Run | Scr Mat Min Distress Signals . | . . . Communications Jammed . | . . . Distress Signals . | . . . Times Spotted 18 | . 16 2 Peak Tracking Total 5 | . 5 2 Tactical Retreats 1 | . 1 . Traps | -11 -10 -10 ------- Run | Scr Mat Min Traps Triggered 5 | . 5 . Indirectly . | . . . Trap Hack Attempts . | . . . Triggered . | . . . Disarmed . | . . . Reprogrammed . | . . . Reused . | . . . Traps Extracted . | . . . Installed . | . . . Triggered . | . . . Machines | -11 -10 -10 ---------- Run | Scr Mat Min Machines Disabled 1 | . 1 . Max in Single Turn 1 | . 1 . Machines Sabotaged . | . . . Garrisons Compromised . | . . . Overloaded Fab Kills . | . . . Fab Network Shutdowns . | . . . Hacking | -11 -10 -10 --------- Run | Scr Mat Min Machines Accessed . | . . . Terminals . | . . . Fabricators . | . . . Repair Stations . | . . . Recycling Units . | . . . Scanalyzers . | . . . Garrison Access . | . . . Total Hacks . | . . . Successful . | . . . Failed . | . . . Catastrophic . | . . . Database Lockouts . | . . . Manual . | . . . Terminals . | . . . Fabricators . | . . . Repair Stations . | . . . Recycling Units . | . . . Scanalyzers . | . . . Garrison Access . | . . . Terminal Hacks . | . . . Fabricator Hacks . | . . . Repair Station Hacks . | . . . Recycling Unit Hacks . | . . . Scanalyzer . | . . . Garrison Access Hacks . | . . . Unauthorized Hacks . | . . . Terminals . | . . . Fabricators . | . . . Repair Stations . | . . . Recycling Units . | . . . Scanalyzers . | . . . Garrison Access . | . . . Data Cores Recovered . | . . . Used . | . . . Hacking Detections . | . . . Full Trace Events . | . . . Feedback Events . | . . . Feedback Blocked . | . . . Robot Schematics Acquired . | . . . Robots Built . | . . . Matter . | . . . Time . | . . . Total Robot Build Rating . | . . . Part Schematics Acquired . | . . . Parts Built . | . . . Matter . | . . . Time . | . . . Total Part Build Rating . | . . . Parts Repaired . | . . . Time . | . . . Parts Recycled . | . . . Recycled Matter . | . . . Retrieved Matter . | . . . Retrieved Components . | . . . Parts Scanalyzed . | . . . Part Schematics Acquired . | . . . Parts Damaged . | . . . Bothacking | -11 -10 -10 ------------ Run | Scr Mat Min Used RIF Installer . | . . . Robots Hacked . | . . . Non-combat . | . . . Combat . | . . . Robot Hacks Applied . | . . . Relay Couplers Released . | . . . Robots Rewired . | . . . Allies Hacked . | . . . Hacks Repelled . | . . . Allies | -11 -10 -10 -------- Run | Scr Mat Min Total Allies . | . . . Largest Group . | . . . Highest-Rated Group . | . . . Highest-Rated Ally . | . . . Total Orders . | . . . Ally Attacks . | . . . Total Damage . | . . . Kills . | . . . Allies Corrupted . | . . . Allies Melted . | . . . Intel | -11 -10 -10 ------- Run | Scr Mat Min Robot Analysis Total . | . . . Derelict Logs Recovered . | . . . Drone Launches . | . . . Drone Recoveries . | . . . Exploration | -11 -10 -10 ------------- Run | Scr Mat Min Turns Passed 412 | 64 303 45 Spaces Moved 333 | 51 254 28 Core 111 | 2 109 . Treads . | . . . Legs 105 | . 77 28 Wheels 116 | 49 67 . Hover . | . . . Flight 1 | . 1 . Fastest Speed 40 | 50 40 120 Average Speed 84 | 78 81 120 Slowest Speed 150 | 80 150 120 Overloaded Moves . | . . . Propulsion Burnouts . | . . . Robots Hopped . | . . . Cave-ins Triggered . | . . . Exploration Rate (%) 18 | 4 44 8 Regions Visited 2 Branch Regions 1 Pre-discovered Areas . | . . . Known Exits Taken . | . . . Unknown Exits Taken 2 | 1 1 . Scrap Searched . | . . . Spaces Dug . | . . . Terrain Destroyed 4 | . 4 . Melee . | . . . Projectile . | . . . AOE 4 | . 4 . Actions | -11 -10 -10 --------- Run | Scr Mat Min Total 413 | 73 306 34 Wait 20 | 20 . . Move 331 | 50 253 28 Hop . | . . . Pick Up . | . . . Fast Attach 11 | 3 8 . Attach . | . . . Detach . | . . . Swap . | . . . Drop 3 | . 3 . Fire 47 | . 41 6 Melee . | . . . Ram 1 | . 1 . Kick . | . . . Crush . | . . . Escape Stasis . | . . . Rewire . | . . . Trap . | . . . Miscellaneous . | . . . Route ------- -11/Scrapyard -10/Materials -10/Mines History --------- Turn | Location | Event 30 | -11/Scrapyard | Discovered new exit (range 16) 65 | -11/Scrapyard | Entered Materials 227 | -10/Materials | Core integrity fell below 50% 245 | -10/Materials | Core integrity fell below 20% 305 | -10/Materials | Build established: Mutant 347 | -10/Materials | Discovered new exit (range 14) 368 | -10/Materials | Entered Mines 370 | -10/Mines | Reached level 2 413 | -10/Mines | Destroyed by G-47 Trooper with Particle Gun Last Messages --------------- K-01 Serf collects debris. O-16 Technician destroyed. Acquired 19 matter. Acquired 70 matter. R-06 Scavenger collects Datajack. R-06 Scavenger collects Hover Unit. Acquired 54 matter. Acquired 16 matter. EXIT=FOUND K-01 Serf cleans the Fusion Modulator. Triggered Shock Trap. The floor emits a surge of raw power. System corrupted (+2). K-01 Serf cleans the Fusion Modulator.